bitfinex-derivatives/quotes_BTCF0:USTF0_20260221
["timestamp","ask_amount","ask_price","bid_price","bid_amount"]
[1771678185596,0.014676,68156.0,68150.0,0.014677]
[1771678185889,0.014675,68160.0,68144.0,0.014679]
[1771678185890,0.014676,68157.0,68144.0,0.014679]
[1771678186094,0.014677,68152.0,68144.0,0.014679]
[1771678186991,0.014676,68155.0,68148.0,0.014678]
[1771678187194,0.014676,68155.0,68147.0,0.014678]
[1771678187394,0.014676,68155.0,68148.0,0.014678]
[1771678190603,0.014676,68155.0,68147.0,0.014678]
[1771678191001,0.014677,68154.0,68147.0,0.014678]
[1771678191502,0.014676,68156.0,68148.0,0.014678]
[1771678192606,0.014678,68150.0,68143.0,0.014679]
[1771678192804,0.014676,68155.0,68140.0,0.2510842]
[1771678192805,0.014676,68157.0,68140.0,0.2657632]
[1771678193004,0.014678,68149.0,68142.0,0.014679]
[1771678193203,0.014677,68151.0,68143.0,0.014679]
[1771678193905,0.014677,68151.0,68144.0,0.014679]
[1771678196410,0.014677,68151.0,68143.0,0.014679]
[1771678196714,0.014677,68151.0,68144.0,0.014679]
[1771678198711,0.014677,68151.0,68142.0,0.014679]
[1771678199012,0.014678,68149.0,68142.0,0.014679]
[1771678199710,0.014677,68151.0,68144.0,0.014679]
[1771678201409,0.014677,68154.0,68146.0,0.014678]
[1771678202012,0.029354,68154.0,68145.0,0.014678]
[1771678202321,0.014677,68154.0,68143.0,0.014679]
[1771678202615,0.014677,68153.0,68145.0,0.014678]
[1771678203213,0.014677,68153.0,68145.0,0.029356]
[1771678203423,0.014677,68153.0,68146.0,0.014678]
[1771678203712,0.014678,68149.0,68141.0,0.014679]
[1771678203919,0.014678,68149.0,68142.0,0.014679]
[1771678204307,0.014677,68150.0,68143.0,0.014679]
[1771678205811,0.014678,68148.0,68141.0,0.014679]
[1771678206017,0.014678,68149.0,68140.0,0.2510842]
[1771678206323,0.014678,68149.0,68137.0,0.01468]
[1771678206916,0.014678,68149.0,68141.0,0.014679]
[1771678207110,0.029356,68149.0,68141.0,0.014679]
[1771678207618,0.014678,68149.0,68141.0,0.014679]
[1771678208721,0.029356,68149.0,68141.0,0.014679]
[1771678209423,0.014678,68149.0,68141.0,0.014679]
[1771678210322,0.014678,68148.0,68141.0,0.014679]
[1771678211919,0.014678,68149.0,68141.0,0.014679]
[1771678212619,0.014678,68149.0,68140.0,0.26237778]
[1771678212920,0.014678,68148.0,68140.0,0.26237778]
[1771678213216,0.014678,68146.0,68137.0,0.02936]
[1771678213419,0.23408494,68148.0,68128.0,0.00013939]
[1771678213624,0.01468,68139.0,68131.0,0.014681]
[1771678213926,0.01468,68138.0,68130.0,0.014682]
[1771678215519,0.01468,68136.0,68128.0,0.01482139]
[1771678215921,0.01468,68136.0,68129.0,0.014682]
[1771678216118,0.014679,68142.0,68129.0,0.014682]
[1771678216119,0.01468,68137.0,68129.0,0.014682]
[1771678216521,0.01468,68137.0,68128.0,0.01482139]
[1771678216522,0.014681,68135.0,68128.0,0.00013939]
[1771678216725,0.00011328,68134.0,68127.0,0.014682]
[1771678217425,0.01479428,68134.0,68126.0,0.24705136]
[1771678217724,0.00011328,68134.0,68128.0,0.014682]
[1771678218126,0.00011328,68134.0,68127.0,0.014682]
[1771678218432,0.00011328,68134.0,68127.0,0.26510662]
[1771678218633,0.00011328,68134.0,68128.0,0.014682]
[1771678218819,0.00011328,68134.0,68129.0,0.014682]
[1771678219128,0.01479428,68134.0,68126.0,0.014683]
[1771678219320,0.01479428,68134.0,68125.0,0.014683]
[1771678219321,0.01479428,68134.0,68127.0,0.014682]
[1771678220223,0.01479428,68134.0,68126.0,0.014683]
[1771678221722,0.00011328,68134.0,68127.0,0.014682]
[1771678221924,0.00011328,68134.0,68130.0,0.014682]
[1771678222128,0.00011328,68134.0,68128.0,0.014682]
[1771678222318,0.00011328,68134.0,68130.0,0.014682]
[1771678222924,0.00011328,68134.0,68129.0,0.014682]
[1771678223826,0.00011328,68134.0,68127.0,0.014682]
[1771678224025,0.00011328,68134.0,68128.0,0.014682]
[1771678224535,0.00011328,68134.0,68129.0,0.014682]
[1771678224723,0.00011328,68134.0,68128.0,0.014682]
[1771678226030,0.00011328,68134.0,68129.0,0.014682]
[1771678229439,0.00011328,68134.0,68128.0,0.014682]
[1771678229940,0.00011328,68134.0,68129.0,0.014682]
[1771678231336,0.00011328,68134.0,68128.0,0.014682]
[1771678232530,0.00011328,68134.0,68127.0,0.014682]
[1771678232726,0.01479428,68134.0,68126.0,0.014683]
[1771678232926,0.01479428,68134.0,68127.0,0.014682]
[1771678233447,0.00011328,68134.0,68127.0,0.014682]
[1771678233744,0.01479428,68134.0,68127.0,0.014682]
[1771678235248,0.00011328,68134.0,68127.0,0.014682]
[1771678238152,0.01479428,68134.0,68127.0,0.014682]
[1771678245056,0.01479428,68134.0,68128.0,0.0008]
[1771678245260,0.01479428,68134.0,68127.0,0.014682]
[1771678247463,0.00011328,68134.0,68127.0,0.029364]
[1771678248266,0.00011328,68134.0,68127.0,0.014682]
[1771678248979,0.00011328,68134.0,68127.0,0.029364]
[1771678251663,0.00011328,68134.0,68128.0,0.014682]
[1771678252258,0.00011328,68134.0,68127.0,0.014682]
[1771678252460,0.00011328,68134.0,68127.0,0.029364]
[1771678253062,0.00011328,68134.0,68128.0,0.014682]
[1771678253660,0.014678,68150.0,68133.0,0.014681]
[1771678253864,0.25278557,68149.0,68133.0,0.014681]
[1771678254053,0.01468,68140.0,68133.0,0.014681]
[1771678254255,0.01468,68140.0,68133.0,0.029362]
[1771678254562,0.014679,68141.0,68134.0,0.014681]
[1771678254753,6.381e-05,68140.0,68134.0,0.014681]
[1771678256061,0.01474381,68140.0,68135.0,0.014681]
[1771678256762,0.23889129,68156.0,68137.0,0.01468]
[1771678256960,0.029358,68144.0,68137.0,0.01468]
[1771678257265,0.014679,68142.0,68137.0,0.01468]
[1771678257462,0.014679,68141.0,68137.0,0.01468]
[1771678258759,0.014679,68144.0,68136.0,0.01468]
[1771678260764,0.01468,68140.0,68136.0,0.01468]
[1771678261263,0.01468,68140.0,68133.0,0.014681]
[1771678261765,0.014679,68141.0,68133.0,0.014681]
[1771678262060,0.014679,68142.0,68134.0,0.014681]
[1771678262262,0.01468,68140.0,68134.0,0.014681]
[1771678262763,0.01468,68140.0,68133.0,0.014681]
[1771678263063,0.02936,68140.0,68133.0,0.014681]
[1771678263258,0.02936,68140.0,68124.0,0.7469212]
[1771678263259,0.014678,68148.0,68141.0,0.014679]
[1771678263562,0.014678,68149.0,68143.0,0.014679]
[1771678263753,0.014676,68159.0,68142.0,0.014679]
[1771678263955,0.014676,68159.0,68150.0,0.17932504]
[1771678264155,0.014677,68151.0,68150.0,0.17932504]
[1771678264566,0.014676,68155.0,68150.0,0.17932504]
[1771678264772,0.014676,68156.0,68150.0,0.17932504]
[1771678265071,0.014675,68161.0,68146.0,0.19400304]
[1771678265257,0.014675,68161.0,68150.0,0.17932504]
[1771678265460,0.014677,68151.0,68150.0,0.17932504]
[1771678265658,0.014677,68151.0,68146.0,0.014678]
[1771678265861,0.014677,68153.0,68146.0,0.014678]
[1771678266061,0.014677,68152.0,68147.0,0.00084]
[1771678266266,0.014677,68152.0,68146.0,0.014678]
[1771678266560,0.014677,68152.0,68147.0,0.014678]
[1771678266766,0.014677,68153.0,68147.0,0.014678]
[1771678267266,0.014677,68154.0,68147.0,0.014678]
[1771678267465,0.014677,68153.0,68146.0,0.014678]
[1771678267668,0.014676,68158.0,68146.0,0.014678]
[1771678268167,0.014676,68156.0,68146.0,0.014678]
[1771678268468,0.014676,68157.0,68149.0,0.014678]
[1771678268971,0.014676,68158.0,68150.0,0.014677]
[1771678269171,0.014676,68158.0,68149.0,0.014678]
[1771678269374,0.014676,68159.0,68150.0,0.014677]
[1771678269563,0.014675,68160.0,68151.0,0.014677]
[1771678269868,0.014676,68158.0,68150.0,0.014677]
[1771678270070,0.014676,68157.0,68149.0,0.19400304]
[1771678270366,0.014676,68158.0,68150.0,0.014677]
[1771678270571,0.014676,68157.0,68150.0,0.014677]
[1771678270771,0.014676,68158.0,68150.0,0.014677]
[1771678271163,0.014676,68157.0,68150.0,0.014677]
[1771678271763,0.014676,68157.0,68149.0,0.19400304]
[1771678271764,0.014676,68155.0,68149.0,0.17932504]
[1771678272467,0.014676,68156.0,68149.0,0.19400304]
[1771678272663,0.014672,68176.0,68150.0,0.35214205]
[1771678272971,0.014672,68176.0,68152.0,0.36681905]
[1771678273170,0.014675,68162.0,68154.0,0.014676]
[1771678273370,0.014675,68162.0,68155.0,0.014676]
[1771678273570,0.02935,68162.0,68155.0,0.014676]
[1771678273772,0.014675,68161.0,68155.0,0.014676]
[1771678274266,0.014675,68162.0,68157.0,0.014676]
[1771678274465,0.014675,68164.0,68157.0,0.014676]
[1771678275670,0.014675,68163.0,68157.0,0.014676]
[1771678275868,0.014675,68164.0,68157.0,0.014676]
[1771678276166,0.33191915,68189.0,68157.0,0.35214205]
[1771678276366,0.33191915,68189.0,68153.0,0.19400204]
[1771678276367,0.014672,68174.0,68170.0,0.17932504]
[1771678276566,0.014672,68177.0,68168.0,0.014673]
[1771678276765,0.014673,68173.0,68168.0,0.014673]
[1771678276960,0.014672,68177.0,68160.0,0.014675]
[1771678277168,0.014673,68170.0,68154.0,0.60966398]
[1771678277371,0.014673,68172.0,68163.0,0.014674]
[1771678277567,0.014673,68172.0,68164.0,0.014674]
[1771678278170,0.014673,68172.0,68165.0,0.014674]
[1771678278471,0.014673,68172.0,68166.0,0.014674]
[1771678279181,0.014673,68173.0,68167.0,0.014674]
[1771678279679,0.014671,68179.0,68173.0,0.014672]
[1771678279874,0.01540434,68181.0,68173.0,0.014672]
[1771678280071,0.029342,68179.0,68173.0,0.014672]
[1771678280273,0.01467,68186.0,68177.0,0.014671]
[1771678280488,0.01467,68186.0,68178.0,0.014671]
[1771678280779,0.01467,68185.0,68177.0,0.014671]
[1771678281077,0.01467,68184.0,68178.0,0.014671]
[1771678281276,0.014669,68187.0,68181.0,0.014671]
[1771678281472,0.014668,68192.0,68181.0,0.014671]
[1771678281681,0.014669,68188.0,68181.0,0.014671]
[1771678282273,0.014669,68190.0,68181.0,0.014671]
[1771678284277,0.014669,68190.0,68183.0,0.01467]
[1771678284482,0.014669,68191.0,68184.0,0.01467]
[1771678284678,0.014668,68196.0,68181.0,0.014671]
[1771678284885,0.014669,68192.0,68184.0,0.01467]
[1771678286481,0.014668,68193.0,68186.0,0.01467]
[1771678288685,0.014668,68193.0,68185.0,0.01467]
[1771678289074,0.04717797,68195.0,68180.0,0.05738784]
[1771678289075,0.014669,68190.0,68180.0,0.05738784]
[1771678289281,0.014669,68190.0,68180.0,0.014671]
[1771678289481,0.014669,68188.0,68179.0,0.014671]
[1771678289692,0.014669,68188.0,68177.0,0.24575975]
[1771678289881,0.014669,68188.0,68180.0,0.014671]
[1771678290088,0.014669,68188.0,68181.0,0.014671]
[1771678290289,0.014669,68188.0,68180.0,0.014671]
[1771678291083,0.014668,68193.0,68181.0,0.014671]
[1771678291283,0.014669,68190.0,68182.0,0.01467]
[1771678291588,0.014669,68191.0,68184.0,0.01467]
[1771678291782,0.014669,68190.0,68183.0,0.01467]
[1771678291984,0.014669,68191.0,68184.0,0.01467]
[1771678293691,0.014668,68192.0,68184.0,0.01467]
[1771678294096,0.014669,68191.0,68184.0,0.01467]
[1771678294786,0.014668,68192.0,68185.0,0.01467]
[1771678296301,0.014669,68191.0,68180.0,0.05738784]
[1771678296492,0.014669,68189.0,68181.0,0.014671]
[1771678299697,0.014669,68189.0,68182.0,0.01467]
[1771678301585,0.014668,68194.0,68179.0,0.05738784]
[1771678301790,0.01467,68185.0,68177.0,0.26270209]
[1771678302400,0.01467,68185.0,68178.0,0.014671]
[1771678302590,0.01467,68186.0,68179.0,0.014671]
[1771678302991,0.01467,68187.0,68179.0,0.029342]
[1771678303192,0.014669,68191.0,68183.0,0.01467]
[1771678303392,0.014669,68190.0,68183.0,0.01467]
[1771678304091,0.014669,68190.0,68182.0,0.01467]
[1771678304286,0.014669,68191.0,68183.0,0.01467]
[1771678304687,0.029338,68191.0,68183.0,0.01467]
[1771678305396,0.014669,68189.0,68182.0,0.014671]
[1771678307304,0.014669,68190.0,68182.0,0.029341]
[1771678307499,0.014669,68190.0,68183.0,0.01467]
[1771678309401,0.014668,68194.0,68183.0,0.01467]
[1771678309702,0.014669,68191.0,68183.0,0.01467]
[1771678309899,0.014669,68191.0,68184.0,0.01467]
[1771678310104,0.014669,68190.0,68183.0,0.01467]
[1771678311105,0.014669,68191.0,68183.0,0.02934]
[1771678311302,0.014669,68191.0,68183.0,0.01467]
[1771678311608,0.014669,68192.0,68183.0,0.01467]
[1771678311609,0.014669,68190.0,68183.0,0.01467]
[1771678313902,0.03250997,68195.0,68179.0,0.014671]
[1771678314206,0.03250997,68195.0,68177.0,0.26270209]
[1771678314207,0.01467,68184.0,68177.0,0.26270209]
[1771678314600,0.01467,68183.0,68177.0,0.24803009]
[1771678314799,0.01467,68183.0,68175.0,0.014672]
[1771678315102,0.014669,68188.0,68176.0,0.014672]
[1771678315297,0.01467,68183.0,68175.0,0.014672]
[1771678316600,0.35793575,68192.0,68173.0,0.014672]
[1771678316803,0.014671,68181.0,68173.0,0.014672]
[1771678317008,0.014671,68182.0,68174.0,0.014672]
[1771678317312,0.014671,68182.0,68175.0,0.014672]
[1771678318506,0.014671,68181.0,68170.0,0.24256613]
[1771678318706,0.014671,68180.0,68172.0,0.014673]
[1771678319007,0.014671,68179.0,68172.0,0.014673]
[1771678319210,0.014671,68180.0,68168.0,0.014673]
[1771678319411,0.014671,68180.0,68173.0,0.014672]
[1771678319615,0.014671,68180.0,68168.0,0.014673]
[1771678319616,0.014671,68178.0,68168.0,0.25049659]
[1771678319908,0.029342,68180.0,68171.0,0.014673]
[1771678320203,0.029342,68180.0,68169.0,0.014673]
[1771678320204,0.014671,68179.0,68172.0,0.014673]
[1771678320401,0.014671,68178.0,68171.0,0.014673]
[1771678321899,0.014671,68178.0,68168.0,0.25297259]
[1771678321900,0.014671,68182.0,68166.0,0.014674]
[1771678322096,0.014672,68174.0,68166.0,0.014674]
[1771678322300,0.014672,68174.0,68165.0,0.484274]
[1771678322504,0.35793575,68204.0,68169.0,0.326159]
[1771678322705,0.35793575,68204.0,68180.0,0.014671]
[1771678322706,0.014669,68187.0,68180.0,0.014671]
[1771678323208,0.014669,68189.0,68180.0,0.014671]
[1771678323209,0.014669,68188.0,68180.0,0.014671]
[1771678325507,0.014669,68187.0,68180.0,0.014671]
[1771678329612,0.014669,68189.0,68180.0,0.014671]
[1771678329916,0.014669,68188.0,68180.0,0.014671]
[1771678330213,0.014669,68189.0,68170.0,0.07206084]
[1771678330214,0.014669,68189.0,68170.0,0.05738784]
[1771678330417,0.01467,68183.0,68171.0,0.014673]
[1771678330814,0.01467,68183.0,68176.0,0.014672]
[1771678333113,0.01467,68183.0,68175.0,0.014672]
[1771678333317,0.014672,68177.0,68167.0,0.014674]
[1771678333518,0.014672,68175.0,68167.0,0.014674]
[1771678334614,0.029344,68175.0,68167.0,0.014674]
[1771678334824,0.014672,68174.0,68166.0,0.014674]
[1771678335633,0.014672,68175.0,68167.0,0.014674]
[1771678335931,0.014672,68177.0,68166.0,0.014674]
[1771678335932,0.014672,68176.0,68168.0,0.014673]
[1771678336124,0.014672,68176.0,68169.0,0.014673]
[1771678336318,0.014672,68176.0,68168.0,0.014673]
[1771678336524,0.014672,68176.0,68168.0,0.014674]
[1771678336930,0.014672,68175.0,68168.0,0.014674]
[1771678337130,0.014672,68176.0,68168.0,0.014674]
[1771678337830,0.014672,68175.0,68167.0,0.014674]
[1771678338826,0.014672,68175.0,68168.0,0.014674]
[1771678342832,0.014672,68176.0,68168.0,0.014674]
[1771678343836,0.014672,68176.0,68168.0,0.029347]
[1771678344130,0.014672,68176.0,68169.0,0.014673]
[1771678350229,0.014673,68173.0,68167.0,0.014674]
[1771678350429,0.014672,68174.0,68167.0,0.014674]
[1771678350841,0.014672,68175.0,68168.0,0.014673]
[1771678351536,0.029344,68175.0,68168.0,0.014673]
[1771678351836,0.014672,68175.0,68168.0,0.014673]
[1771678353242,0.014672,68175.0,68163.0,0.014675]
[1771678353243,0.014671,68179.0,68171.0,0.014673]
[1771678353838,0.014672,68178.0,68171.0,0.014673]
[1771678354638,0.014671,68180.0,68173.0,0.014672]
[1771678354843,0.014671,68180.0,68172.0,0.014673]
[1771678355047,0.014671,68178.0,68172.0,0.014673]
[1771678355645,0.014671,68178.0,68171.0,0.014673]
[1771678355844,0.014671,68180.0,68170.0,0.014673]
[1771678355845,0.014671,68180.0,68172.0,0.014673]
[1771678356048,0.014671,68180.0,68174.0,0.00096]
[1771678356238,0.014671,68180.0,68172.0,0.014673]
[1771678356432,0.014672,68178.0,68172.0,0.014673]
[1771678356742,0.014672,68178.0,68171.0,0.014673]
[1771678356950,0.014671,68178.0,68172.0,0.014673]
[1771678357244,0.014671,68179.0,68173.0,0.014672]
[1771678357646,0.014671,68180.0,68173.0,0.014672]
[1771678358243,0.014671,68181.0,68173.0,0.014672]
[1771678358545,0.014671,68181.0,68175.0,0.014672]
[1771678359337,0.014671,68180.0,68173.0,0.014672]
[1771678361343,0.014671,68180.0,68174.0,0.014672]
[1771678361549,0.014671,68181.0,68174.0,0.014672]
[1771678362738,0.014671,68182.0,68175.0,0.014672]
[1771678363646,0.014671,68181.0,68175.0,0.014672]
[1771678363951,0.014671,68180.0,68173.0,0.014672]
[1771678364150,0.014671,68180.0,68174.0,0.014672]
[1771678364350,0.014671,68181.0,68175.0,0.014672]
[1771678365548,0.01467,68184.0,68176.0,0.014672]
[1771678365754,0.01467,68186.0,68179.0,0.014671]
[1771678366056,0.01467,68186.0,68179.0,0.029342]
[1771678366348,0.01467,68186.0,68179.0,0.014671]
[1771678366855,0.014669,68187.0,68180.0,0.014671]
[1771678367045,0.01467,68186.0,68180.0,0.014671]
[1771678370356,0.01467,68186.0,68180.0,0.029342]
[1771678370557,0.38305248,68201.0,68182.0,0.01467]
[1771678370757,0.014669,68192.0,68185.0,0.01467]
[1771678371257,0.014669,68192.0,68183.0,0.01467]
[1771678371258,0.014667,68199.0,68191.0,0.014668]
[1771678371862,0.36838648,68210.0,68189.0,0.17912702]
[1771678372152,0.014666,68202.0,68200.0,0.17912702]
[1771678372352,0.014666,68202.0,68196.0,0.014667]
[1771678372557,0.014666,68203.0,68196.0,0.014667]
[1771678372759,0.014663,68218.0,68202.0,0.014666]
[1771678372949,0.014663,68218.0,68197.0,0.16393977]
[1771678372950,0.014664,68211.0,68205.0,0.014666]
[1771678373149,0.014664,68212.0,68205.0,0.014666]
[1771678373351,0.014664,68212.0,68206.0,0.014665]
[1771678373752,0.04717319,68212.0,68206.0,0.014665]
[1771678373952,0.014664,68212.0,68206.0,0.014665]
[1771678374152,0.014664,68213.0,68207.0,0.014665]
[1771678374360,0.014664,68211.0,68205.0,0.014666]
[1771678375461,0.014664,68212.0,68206.0,0.014665]
[1771678376059,0.12956501,68244.0,68196.0,0.29238317]
[1771678376266,0.014664,68213.0,68202.0,0.014666]
[1771678376560,0.014664,68213.0,68206.0,0.02933]
[1771678376750,0.014664,68213.0,68206.0,0.014665]
[1771678376953,0.06183719,68213.0,68206.0,0.014665]
[1771678377149,0.014665,68212.0,68207.0,0.014665]
[1771678377463,0.04717319,68213.0,68205.0,0.014666]
[1771678377464,0.014664,68213.0,68205.0,0.014666]
[1771678378055,0.014664,68214.0,68204.0,0.25011716]
[1771678378056,0.014664,68212.0,68204.0,0.26478316]
[1771678379156,0.014664,68212.0,68200.0,0.37292104]
[1771678379157,0.014666,68204.0,68200.0,0.17912702]
[1771678379463,0.014666,68205.0,68198.0,0.014667]
[1771678379653,0.014666,68205.0,68197.0,0.25681486]
[1771678379854,0.014666,68205.0,68198.0,0.014667]
[1771678380056,0.014666,68205.0,68197.0,0.25681486]
[1771678380261,0.014665,68208.0,68201.0,0.014666]
[1771678380663,0.014665,68209.0,68201.0,0.014666]
[1771678381163,0.014665,68209.0,68202.0,0.014666]
[1771678381164,0.04717319,68208.0,68202.0,0.014666]
[1771678381469,0.04717319,68208.0,68200.0,0.014667]
[1771678381470,0.014664,68214.0,68204.0,0.014666]
[1771678381653,0.014663,68215.0,68204.0,0.014666]
[1771678381854,0.014664,68213.0,68204.0,0.014666]
[1771678382052,0.014664,68213.0,68205.0,0.014666]
[1771678382358,0.014664,68212.0,68204.0,0.014666]
[1771678382558,0.06183719,68212.0,68204.0,0.014666]
[1771678382864,0.014665,68211.0,68204.0,0.014666]
[1771678383066,0.06183819,68211.0,68205.0,0.00084]
[1771678383364,0.014665,68211.0,68205.0,0.014665]
[1771678383564,0.04717319,68210.0,68205.0,0.014665]
[1771678384161,0.04717319,68209.0,68205.0,0.014665]
[1771678384365,0.014665,68213.0,68205.0,0.014665]
[1771678384665,0.04717319,68211.0,68205.0,0.014665]
[1771678384966,0.014665,68213.0,68205.0,0.014665]
[1771678385364,0.014665,68213.0,68207.0,0.014665]
[1771678385555,0.06183819,68213.0,68207.0,0.014665]
[1771678385761,0.014665,68213.0,68206.0,0.014665]
[1771678386265,0.04717319,68210.0,68206.0,0.014665]
[1771678386666,0.04717319,68208.0,68206.0,0.014665]
[1771678387058,0.014664,68214.0,68206.0,0.014665]
[1771678387254,0.014665,68213.0,68206.0,0.014665]
[1771678387458,0.014665,68213.0,68206.0,0.02933]
[1771678387766,0.014665,68213.0,68206.0,0.014665]
[1771678388169,0.04717319,68209.0,68206.0,0.014665]
[1771678388773,0.04717319,68207.0,68206.0,0.014665]
[1771678389066,0.014665,68212.0,68207.0,0.014665]
[1771678389275,0.014663,68215.0,68207.0,0.014665]
[1771678389276,0.029328,68215.0,68207.0,0.014665]
[1771678389572,0.014664,68214.0,68206.0,0.014665]
[1771678390174,0.04717319,68210.0,68206.0,0.014665]
[1771678390360,0.014664,68214.0,68206.0,0.014665]
[1771678390762,0.38849568,68213.0,68201.0,0.014666]
[1771678391058,0.014665,68210.0,68201.0,0.014666]
[1771678391256,0.04717319,68208.0,68201.0,0.014666]
[1771678391462,0.014665,68209.0,68201.0,0.014666]
[1771678391876,0.04717319,68206.0,68201.0,0.014666]
[1771678392373,0.04717319,68204.0,68201.0,0.014666]
[1771678392559,0.014665,68209.0,68201.0,0.029332]
[1771678392756,0.04717319,68205.0,68202.0,0.014666]
[1771678392967,0.02933,68210.0,68202.0,0.014666]
[1771678393372,0.04717319,68205.0,68202.0,0.014666]
[1771678393765,0.04717319,68203.0,68197.0,0.014667]
[1771678393968,0.014665,68208.0,68199.0,0.029334]
[1771678394164,0.02933,68209.0,68201.0,0.014666]
[1771678394368,0.04717319,68208.0,68201.0,0.014666]
[1771678394674,0.02933,68209.0,68201.0,0.014666]
[1771678394862,0.04717319,68204.0,68201.0,0.014666]
[1771678395271,0.02933,68209.0,68201.0,0.014666]
[1771678395871,0.04717319,68204.0,68201.0,0.014666]
[1771678396274,0.02933,68209.0,68201.0,0.014666]
[1771678396967,0.04717319,68203.0,68201.0,0.014666]
[1771678397473,0.04717319,68202.0,68201.0,0.014666]
[1771678397674,0.014665,68208.0,68201.0,0.014666]
[1771678397870,0.04717319,68203.0,68198.0,0.17912702]
[1771678398071,0.37383168,68205.0,68195.0,0.04876686]
[1771678398375,0.04717319,68196.0,68192.0,0.014668]
[1771678398578,0.014666,68201.0,68190.0,0.014669]
[1771678398876,0.04717319,68193.0,68190.0,0.4410435]
[1771678399072,0.04717319,68193.0,68191.0,0.014669]
[1771678399377,0.04717319,68192.0,68191.0,0.014669]
[1771678399569,0.043999,68199.0,68190.0,0.014669]
[1771678399771,0.029332,68198.0,68190.0,0.014669]
[1771678399971,0.04717319,68192.0,68190.0,0.014669]
[1771678400176,0.014665,68197.0,68187.0,0.014669]
[1771678400363,0.04717319,68193.0,68190.0,0.014669]
[1771678400571,0.014665,68197.0,68190.0,0.014669]
[1771678400869,0.04717319,68192.0,68190.0,0.014669]
[1771678401075,0.014665,68197.0,68188.0,0.014669]
[1771678401266,0.014665,68196.0,68188.0,0.014669]
[1771678401472,0.04717319,68191.0,68188.0,0.014669]
[1771678401777,0.014665,68196.0,68188.0,0.014669]
[1771678401978,0.014665,68196.0,68190.0,0.014669]
[1771678405383,0.014667,68199.0,68190.0,0.014669]
[1771678405684,0.014665,68198.0,68190.0,0.029338]
[1771678406478,0.014666,68201.0,68191.0,0.014669]
[1771678406972,0.014666,68201.0,68193.0,0.014668]
[1771678410782,0.014665,68202.0,68188.0,0.05737012]
[1771678411084,0.014665,68202.0,68195.0,0.014668]
[1771678411287,0.014666,68204.0,68194.0,0.014668]
[1771678411782,0.014666,68203.0,68194.0,0.014668]
[1771678412377,0.014666,68203.0,68192.0,0.014668]
[1771678412378,0.014666,68202.0,68193.0,0.014668]
[1771678413280,0.014666,68201.0,68193.0,0.014668]
[1771678415682,0.014666,68203.0,68194.0,0.029336]
[1771678415886,0.014666,68203.0,68194.0,0.014668]
[1771678416382,0.014666,68203.0,68195.0,0.014668]
[1771678419186,0.014664,68211.0,68190.0,0.014669]
[1771678419386,0.014666,68202.0,68194.0,0.014668]
[1771678419794,0.014664,68211.0,68194.0,0.014668]
[1771678420093,0.014666,68202.0,68194.0,0.029336]
[1771678420483,0.3915715,68217.0,68192.0,0.014668]
[1771678420786,0.014665,68210.0,68201.0,0.014666]
[1771678420996,0.014665,68210.0,68202.0,0.014666]
[1771678423396,0.014665,68208.0,68200.0,0.014667]
[1771678424792,0.01466,68229.0,68202.0,0.33832362]
[1771678425098,0.014663,68219.0,68211.0,0.014664]
[1771678425297,0.014662,68220.0,68211.0,0.014664]
[1771678425489,0.029329,68219.0,68211.0,0.014664]
[1771678426608,0.043992,68219.0,68211.0,0.014664]
[1771678426899,0.043992,68219.0,68210.0,0.014664]
[1771678427602,0.029329,68218.0,68210.0,0.014664]
[1771678428003,0.014663,68219.0,68210.0,0.014664]
[1771678428198,0.029329,68218.0,68210.0,0.014664]
[1771678428907,0.014663,68219.0,68210.0,0.014664]
[1771678429106,0.029329,68218.0,68211.0,0.014664]
[1771678429306,0.029329,68218.0,68210.0,0.014664]
[1771678429307,0.029329,68218.0,68212.0,0.014664]
[1771678429907,0.014662,68221.0,68212.0,0.014664]
[1771678430103,0.029329,68220.0,68211.0,0.014664]
[1771678430504,0.029329,68219.0,68211.0,0.014664]
[1771678431309,0.3769085,68218.0,68201.0,0.014666]
[1771678431510,0.014664,68213.0,68202.0,0.014666]
[1771678431708,0.029328,68213.0,68203.0,0.014666]
[1771678431902,0.043993,68212.0,68203.0,0.014666]
[1771678432304,0.029329,68212.0,68203.0,0.014666]
[1771678432704,0.029329,68212.0,68205.0,0.014666]
[1771678435510,0.029329,68211.0,68205.0,0.014666]
[1771678436007,0.014664,68214.0,68205.0,0.014666]
[1771678436209,0.029329,68213.0,68205.0,0.014666]
[1771678437707,0.014663,68219.0,68206.0,0.014665]
[1771678437906,0.014663,68219.0,68205.0,0.014666]
[1771678437907,0.014663,68219.0,68209.0,0.014665]
[1771678438111,0.029329,68218.0,68209.0,0.014665]
[1771678438607,0.043992,68218.0,68209.0,0.014665]
[1771678439113,0.014663,68217.0,68208.0,0.014665]
[1771678439309,0.014663,68216.0,68207.0,0.014665]
[1771678439612,0.014663,68217.0,68207.0,0.014665]
[1771678440114,0.029329,68218.0,68207.0,0.014665]
[1771678440312,0.043992,68218.0,68209.0,0.014665]
[1771678442012,0.014663,68218.0,68209.0,0.014665]
[1771678443812,0.014663,68219.0,68209.0,0.014665]
[1771678444013,0.043992,68219.0,68209.0,0.014665]
[1771678444221,0.014663,68218.0,68209.0,0.014665]
[1771678444815,0.014663,68216.0,68205.0,0.014666]
[1771678445010,0.014663,68216.0,68203.0,0.014666]
[1771678445011,0.4062365,68213.0,68203.0,0.014666]
[1771678445211,0.3915725,68212.0,68200.0,0.014667]
[1771678445411,0.4209015,68212.0,68201.0,0.014666]
[1771678446017,0.4209015,68212.0,68203.0,0.014666]
[1771678446218,0.014664,68211.0,68202.0,0.014666]
[1771678446419,0.014665,68209.0,68200.0,0.014667]
[1771678446814,0.029329,68208.0,68201.0,0.014666]